[Event "Early-Titled-Tuesday-Blitz-April-16-2024"]
[Site "Chess.com"]
[Date "2024.04.16"]
[Round "9"]
[White "Ati1517"]
[Black "noblerone"]
[Result "1-0"]
[WhiteElo "2239"]
[BlackElo "2482"]
[TimeControl "180+1"]
[EndTime "9:49:15 PDT"]
[Termination "Ati1517 won by resignation"]

1. e4 {[%clk 0:02:22.3]} 1... c5 {[%clk 0:02:59.8]} 2. Nf3 {[%clk 0:02:22.3]}
2... e6 {[%clk 0:03:00.4]} 3. d4 {[%clk 0:02:22.8]} 3... cxd4 {[%clk 0:03:01.3]}
4. Nxd4 {[%clk 0:02:23.3]} 4... Qb6 {[%clk 0:03:00.8]} 5. Nc3 {[%clk 0:02:19.2]}
5... Bc5 {[%clk 0:03:00.2]} 6. Na4 {[%clk 0:02:15.6]} 6... Qa5+ {[%clk
0:02:58.8]} 7. c3 {[%clk 0:02:15.7]} 7... Bxd4 {[%clk 0:02:58.5]} 8. Qxd4 {[%clk
0:02:15.1]} 8... Nf6 {[%clk 0:02:58.9]} 9. b3 {[%clk 0:01:11.7]} 9... Nc6 {[%clk
0:02:56.7]} 10. Qe3 {[%clk 0:01:09.2]} 10... d5 {[%clk 0:02:29.5]} 11. e5 {[%clk
0:01:08.9]} 11... Nd7 {[%clk 0:02:22.1]} 12. f4 {[%clk 0:01:06.3]} 12... d4
{[%clk 0:02:17.1]} 13. Qd3 {[%clk 0:00:58.2]} 13... O-O {[%clk 0:02:11.3]} 14.
Be2 {[%clk 0:00:55.6]} 14... a6 {[%clk 0:01:57.1]} 15. Bd2 {[%clk 0:00:44.3]}
15... dxc3 {[%clk 0:01:23]} 16. Nxc3 {[%clk 0:00:42]} 16... Nb4 {[%clk
0:01:13.4]} 17. Qb1 {[%clk 0:00:32.7]} 17... Qc5 {[%clk 0:01:09.1]} 18. Ne4
{[%clk 0:00:28.3]} 18... Qe7 {[%clk 0:00:53.8]} 19. a3 {[%clk 0:00:23.6]} 19...
Nd5 {[%clk 0:00:52]} 20. O-O {[%clk 0:00:21.7]} 20... h6 {[%clk 0:00:47.5]} 21.
Bc4 {[%clk 0:00:21.2]} 21... N7b6 {[%clk 0:00:47]} 22. Qd3 {[%clk 0:00:19.7]}
22... Bd7 {[%clk 0:00:46.1]} 23. Nd6 {[%clk 0:00:19.9]} 23... Bc6 {[%clk
0:00:44.7]} 24. f5 {[%clk 0:00:20.1]} 24... exf5 {[%clk 0:00:43.6]} 25. Qxf5
{[%clk 0:00:19]} 25... Qe6 {[%clk 0:00:42.5]} 26. Qxe6 {[%clk 0:00:18.3]} 26...
fxe6 {[%clk 0:00:42.5]} 27. Rxf8+ {[%clk 0:00:17.7]} 27... Rxf8 {[%clk 0:00:42]}
28. Rf1 {[%clk 0:00:18.3]} 28... Rxf1+ {[%clk 0:00:41.8]} 29. Kxf1 {[%clk
0:00:19.2]} 29... Nxc4 {[%clk 0:00:35.7]} 30. bxc4 {[%clk 0:00:19]} 30... Ne7
{[%clk 0:00:36.6]} 31. c5 {[%clk 0:00:17.2]} 31... Nd5 {[%clk 0:00:36]} 32. Kf2
{[%clk 0:00:16.2]} 32... Kf8 {[%clk 0:00:35.8]} 33. Nc4 {[%clk 0:00:16]} 33...
Nc7 {[%clk 0:00:34.7]} 34. Na5 {[%clk 0:00:15.5]} 34... Bd5 {[%clk 0:00:33.5]}
35. Bb4 {[%clk 0:00:14.6]} 35... Kf7 {[%clk 0:00:33.2]} 36. g3 {[%clk
0:00:13.2]} 36... Nb5 {[%clk 0:00:32.9]} 37. Ke3 {[%clk 0:00:13.6]} 37... g6
{[%clk 0:00:31.6]} 38. a4 {[%clk 0:00:14.2]} 38... Nc7 {[%clk 0:00:30.7]} 39.
Kd4 {[%clk 0:00:14.9]} 39... Ne8 {[%clk 0:00:30.9]} 40. Nc4 {[%clk 0:00:14.1]}
40... Bxc4 {[%clk 0:00:27.1]} 41. Kxc4 {[%clk 0:00:14.5]} 41... Nc7 {[%clk
0:00:26.9]} 42. c6 {[%clk 0:00:14.6]} 42... b6 {[%clk 0:00:21.8]} 43. Bd6 {[%clk
0:00:13.7]} 43... b5+ {[%clk 0:00:12.4]} 44. axb5 {[%clk 0:00:13.2]} 44... axb5+
{[%clk 0:00:13.3]} 45. Kc5 {[%clk 0:00:13.1]} 45... Nd5 {[%clk 0:00:10.2]} 46.
c7 {[%clk 0:00:13.1]} 1-0

[Event "Early-Titled-Tuesday-Blitz-April-16-2024"]
[Site "Chess.com"]
[Date "2024.04.16"]
[Round "9"]
[White "sokidze"]
[Black "kachsona"]
[Result "1-0"]
[WhiteElo "2809"]
[BlackElo "2618"]
[TimeControl "180+1"]
[EndTime "9:49:17 PDT"]
[Termination "sokidze won by resignation"]

1. d4 {[%clk 0:03:00.9]} 1... d5 {[%clk 0:02:56.2]} 2. c4 {[%clk 0:03:00.5]}
2... e6 {[%clk 0:02:54]} 3. Nf3 {[%clk 0:02:59.1]} 3... Nf6 {[%clk 0:02:53.4]}
4. g3 {[%clk 0:02:59.5]} 4... c6 {[%clk 0:02:50.5]} 5. Qc2 {[%clk 0:02:56.1]}
5... Be7 {[%clk 0:02:44.1]} 6. Bg2 {[%clk 0:02:56.2]} 6... O-O {[%clk
0:02:44.6]} 7. O-O {[%clk 0:02:56.4]} 7... Ne4 {[%clk 0:02:44]} 8. Nbd2 {[%clk
0:02:48.4]} 8... f5 {[%clk 0:02:43.4]} 9. Ne5 {[%clk 0:02:46.8]} 9... Nd7 {[%clk
0:02:41.5]} 10. Nd3 {[%clk 0:02:46.4]} 10... Bf6 {[%clk 0:02:33.9]} 11. Nf3
{[%clk 0:02:39.8]} 11... b6 {[%clk 0:02:29.7]} 12. cxd5 {[%clk 0:02:34.3]} 12...
cxd5 {[%clk 0:02:29.1]} 13. Qc6 {[%clk 0:02:33.7]} 13... Ndc5 {[%clk 0:00:48.4]}
14. Qxa8 {[%clk 0:02:02.9]} 14... Nxd3 {[%clk 0:00:37.1]} 15. exd3 {[%clk
0:02:02.2]} 15... Qd7 {[%clk 0:00:33.3]} 16. Qb8 {[%clk 0:01:39.5]} 16... Nd6
{[%clk 0:00:18.5]} 17. Bf4 {[%clk 0:01:36.8]} 17... Nb5 {[%clk 0:00:15.9]} 18.
Ne5 {[%clk 0:01:33]} 18... Qe7 {[%clk 0:00:13.3]} 19. Nc6 {[%clk 0:01:09.9]}
19... Qd7 {[%clk 0:00:13.6]} 20. Nxa7 {[%clk 0:01:03.9]} 20... Bb7 {[%clk
0:00:13.9]} 21. Qxb7 {[%clk 0:00:48.4]} 21... Qxb7 {[%clk 0:00:13.5]} 22. Nxb5
{[%clk 0:00:49.1]} 22... g5 {[%clk 0:00:07.5]} 23. Be5 {[%clk 0:00:43.4]} 23...
Bxe5 {[%clk 0:00:07.8]} 24. dxe5 {[%clk 0:00:44]} 24... f4 {[%clk 0:00:07.7]}
25. Bh3 {[%clk 0:00:38.5]} 25... Qf7 {[%clk 0:00:06.5]} 26. Nd4 {[%clk
0:00:35.1]} 26... Re8 {[%clk 0:00:06.8]} 27. Rac1 {[%clk 0:00:33.8]} 27... Qh5
{[%clk 0:00:06.7]} 28. Bxe6+ {[%clk 0:00:20.4]} 28... Kh8 {[%clk 0:00:07]} 29.
Bxd5 {[%clk 0:00:15.3]} 29... Rxe5 {[%clk 0:00:05.3]} 30. Bg2 {[%clk 0:00:07.5]}
30... f3 {[%clk 0:00:03.7]} 31. Nxf3 {[%clk 0:00:07.1]} 31... Rd5 {[%clk
0:00:03.9]} 32. Rfe1 {[%clk 0:00:04.8]} 32... Rxd3 {[%clk 0:00:03.4]} 33. Re5
{[%clk 0:00:04.5]} 33... Rd8 {[%clk 0:00:02.8]} 34. Rxg5 {[%clk 0:00:04.4]}
34... Qf7 {[%clk 0:00:02.2]} 35. a3 {[%clk 0:00:03.9]} 35... h6 {[%clk
0:00:02.4]} 36. Re5 {[%clk 0:00:03.9]} 36... Qf6 {[%clk 0:00:02.5]} 37. Re2
{[%clk 0:00:04.1]} 37... Rd3 {[%clk 0:00:02]} 38. Ne5 {[%clk 0:00:04.2]} 38...
Rd5 {[%clk 0:00:01.7]} 39. Bxd5 {[%clk 0:00:04.4]} 39... Qd6 {[%clk 0:00:01.7]}
40. Nf7+ {[%clk 0:00:04.5]} 40... Kg7 {[%clk 0:00:01.3]} 41. Nxd6 {[%clk
0:00:05.4]} 1-0

[Event "Early-Titled-Tuesday-Blitz-April-16-2024"]
[Site "Chess.com"]
[Date "2024.04.16"]
[Round "9"]
[White "CrushingKings"]
[Black "NajdorfPlayerc5"]
[Result "1/2-1/2"]
[WhiteElo "2596"]
[BlackElo "2422"]
[TimeControl "180+1"]
[EndTime "9:49:18 PDT"]
[Termination "Game drawn by repetition"]

1. Nf3 {[%clk 0:03:00.9]} 1... Nf6 {[%clk 0:02:57.6]} 2. g3 {[%clk 0:03:01.1]}
2... c5 {[%clk 0:02:57.6]} 3. Bg2 {[%clk 0:03:00.7]} 3... Nc6 {[%clk 0:02:58.2]}
4. d4 {[%clk 0:03:00.6]} 4... cxd4 {[%clk 0:02:56.9]} 5. Nxd4 {[%clk 0:03:01.2]}
5... e5 {[%clk 0:02:57.5]} 6. Nxc6 {[%clk 0:03:01.1]} 6... dxc6 {[%clk
0:02:58.4]} 7. Qxd8+ {[%clk 0:02:58.3]} 7... Kxd8 {[%clk 0:02:59.3]} 8. O-O
{[%clk 0:02:58.3]} 8... Kc7 {[%clk 0:02:46]} 9. c4 {[%clk 0:02:55.5]} 9... Be6
{[%clk 0:02:44]} 10. b3 {[%clk 0:02:55.2]} 10... Bc5 {[%clk 0:02:42]} 11. e3
{[%clk 0:02:52.4]} 11... Nd7 {[%clk 0:02:39.1]} 12. Bb2 {[%clk 0:02:51.4]} 12...
f6 {[%clk 0:02:38.9]} 13. Nc3 {[%clk 0:02:51.5]} 13... Rhe8 {[%clk 0:02:36.4]}
14. Rfd1 {[%clk 0:02:50.5]} 14... a5 {[%clk 0:02:35.1]} 15. h3 {[%clk
0:02:19.7]} 15... Rad8 {[%clk 0:02:32.3]} 16. Na4 {[%clk 0:02:01.9]} 16... Bf8
{[%clk 0:02:28]} 17. Bc3 {[%clk 0:01:35.5]} 17... b6 {[%clk 0:02:16.6]} 18. Rd2
{[%clk 0:01:35.4]} 18... Nc5 {[%clk 0:02:15.7]} 19. Nxc5 {[%clk 0:01:30.8]}
19... Bxc5 {[%clk 0:02:16.6]} 20. Rad1 {[%clk 0:01:27.6]} 20... Rxd2 {[%clk
0:02:16]} 21. Rxd2 {[%clk 0:01:27.9]} 21... Ra8 {[%clk 0:02:09.7]} 22. a4 {[%clk
0:01:14.3]} 22... Bb4 {[%clk 0:02:04.1]} 23. Bxb4 {[%clk 0:01:12.7]} 23... axb4
{[%clk 0:02:05]} 24. Kf1 {[%clk 0:01:13]} 24... Re8 {[%clk 0:02:01.7]} 25. Ke2
{[%clk 0:01:10.4]} 25... c5 {[%clk 0:02:00.5]} 26. g4 {[%clk 0:01:01.6]} 26...
Rd8 {[%clk 0:01:59.7]} 27. Bd5 {[%clk 0:01:01.4]} 27... Bc8 {[%clk 0:01:55.8]}
28. e4 {[%clk 0:01:00.1]} 28... h5 {[%clk 0:01:51.6]} 29. f3 {[%clk 0:00:42.1]}
29... hxg4 {[%clk 0:01:44.1]} 30. fxg4 {[%clk 0:00:42.6]} 30... Rh8 {[%clk
0:01:43.3]} 31. Rd3 {[%clk 0:00:42.9]} 31... Rxh3 {[%clk 0:01:10.9]} 32. Rxh3
{[%clk 0:00:42.3]} 32... Bxg4+ {[%clk 0:01:11.5]} 33. Rf3 {[%clk 0:00:42.9]}
33... Kd6 {[%clk 0:01:11.9]} 34. Kf2 {[%clk 0:00:40.5]} 34... Bxf3 {[%clk
0:01:12.1]} 35. Kxf3 {[%clk 0:00:41.2]} 35... Ke7 {[%clk 0:01:12.4]} 36. Kg4
{[%clk 0:00:38.3]} 36... g6 {[%clk 0:01:12.9]} 37. Kh4 {[%clk 0:00:31.4]} 37...
Kf8 {[%clk 0:01:12.8]} 38. Be6 {[%clk 0:00:31.3]} 38... Kg7 {[%clk 0:01:12.3]}
39. Bh3 {[%clk 0:00:30.7]} 39... Kh6 {[%clk 0:01:08.2]} 40. Bd7 {[%clk
0:00:29.9]} 40... Kg7 {[%clk 0:01:08.4]} 41. Be8 {[%clk 0:00:30]} 41... Kh6
{[%clk 0:01:08.4]} 42. Kg4 {[%clk 0:00:22.4]} 42... Kg7 {[%clk 0:01:08.6]} 43.
Bd7 {[%clk 0:00:19.8]} 43... Kh6 {[%clk 0:01:08.8]} 44. Bc8 {[%clk 0:00:19.8]}
44... Kg7 {[%clk 0:01:08.8]} 45. Bd7 {[%clk 0:00:16.6]} 45... Kh6 {[%clk
0:01:09.1]} 46. Bc6 {[%clk 0:00:13.5]} 46... Kh7 {[%clk 0:01:07]} 47. Bb7 {[%clk
0:00:11.6]} 47... Kg7 {[%clk 0:01:06.7]} 48. Bc8 {[%clk 0:00:11.7]} 48... Kh6
{[%clk 0:01:06.4]} 49. Ba6 {[%clk 0:00:12.3]} 49... Kh7 {[%clk 0:01:05.1]} 50.
Bb5 {[%clk 0:00:12.9]} 50... Kh8 {[%clk 0:01:01.2]} 51. Bd7 {[%clk 0:00:11.7]}
51... Kg7 {[%clk 0:01:01]} 52. Kh4 {[%clk 0:00:11.8]} 52... Kf7 {[%clk
0:01:00.8]} 53. Bg4 {[%clk 0:00:10.8]} 53... Ke7 {[%clk 0:00:56.7]} 54. Bh3
{[%clk 0:00:09.4]} 54... Kf8 {[%clk 0:00:56.5]} 55. Kg4 {[%clk 0:00:10]} 55...
Kf7 {[%clk 0:00:56.3]} 56. Kg3 {[%clk 0:00:10.2]} 56... Kg7 {[%clk 0:00:56.8]}
57. Bc8 {[%clk 0:00:10.7]} 57... Kh6 {[%clk 0:00:57.3]} 58. Kg4 {[%clk
0:00:11.1]} 58... Kg7 {[%clk 0:00:57.4]} 59. Bb7 {[%clk 0:00:11.4]} 59... Kf7
{[%clk 0:00:57.1]} 60. Ba8 {[%clk 0:00:12]} 60... Ke7 {[%clk 0:00:57.6]} 61. Bd5
{[%clk 0:00:12.9]} 61... Ke8 {[%clk 0:00:55]} 62. Bg8 {[%clk 0:00:12.3]} 62...
Ke7 {[%clk 0:00:53.8]} 63. Bd5 {[%clk 0:00:11.4]} 63... Kf8 {[%clk 0:00:53.3]}
64. Bb7 {[%clk 0:00:10.5]} 64... Kg8 {[%clk 0:00:53.1]} 65. Bc8 {[%clk 0:00:11]}
65... Kg7 {[%clk 0:00:53]} 1/2-1/2

[Event "Early-Titled-Tuesday-Blitz-April-16-2024"]
[Site "Chess.com"]
[Date "2024.04.16"]
[Round "9"]
[White "lefonghua"]
[Black "LeninGuerra"]
[Result "0-1"]
[WhiteElo "2585"]
[BlackElo "2767"]
[TimeControl "180+1"]
[EndTime "9:49:20 PDT"]
[Termination "LeninGuerra won on time"]

1. d4 {[%clk 0:03:00.9]} 1... Nf6 {[%clk 0:02:59.4]} 2. c4 {[%clk 0:03:01.1]}
2... c5 {[%clk 0:02:59.6]} 3. d5 {[%clk 0:03:01.3]} 3... b5 {[%clk 0:02:59.9]}
4. cxb5 {[%clk 0:03:02]} 4... a6 {[%clk 0:03:00.3]} 5. b6 {[%clk 0:03:02.7]}
5... d6 {[%clk 0:03:00.1]} 6. Nc3 {[%clk 0:03:03.2]} 6... Nbd7 {[%clk
0:03:00.3]} 7. a4 {[%clk 0:03:03.5]} 7... Qxb6 {[%clk 0:02:59.8]} 8. a5 {[%clk
0:03:03.9]} 8... Qb8 {[%clk 0:02:59.5]} 9. e4 {[%clk 0:03:04]} 9... g6 {[%clk
0:02:59.9]} 10. f4 {[%clk 0:03:04.3]} 10... Bg7 {[%clk 0:03:00.4]} 11. Bc4
{[%clk 0:03:04.7]} 11... O-O {[%clk 0:03:00.5]} 12. Qd3 {[%clk 0:03:05.1]} 12...
Ra7 {[%clk 0:03:00.6]} 13. Nf3 {[%clk 0:03:04.8]} 13... Rb7 {[%clk 0:03:00.8]}
14. O-O {[%clk 0:03:04.1]} 14... Rb4 {[%clk 0:03:00.5]} 15. Ra2 {[%clk
0:03:01.3]} 15... Rd8 {[%clk 0:02:32.8]} 16. b3 {[%clk 0:02:57.9]} 16... Nf8
{[%clk 0:02:25]} 17. Bd2 {[%clk 0:02:48.4]} 17... e6 {[%clk 0:02:21.1]} 18. h3
{[%clk 0:02:24.4]} 18... Bb7 {[%clk 0:02:01.6]} 19. Na4 {[%clk 0:02:00.4]} 19...
exd5 {[%clk 0:01:59.7]} 20. exd5 {[%clk 0:02:00.1]} 20... Bc8 {[%clk 0:01:41.3]}
21. Nb6 {[%clk 0:01:36.7]} 21... Bf5 {[%clk 0:01:40.6]} 22. Qe2 {[%clk
0:01:36.7]} 22... Re8 {[%clk 0:01:37.8]} 23. Qd1 {[%clk 0:01:34.7]} 23... Rxc4
{[%clk 0:01:26]} 24. bxc4 {[%clk 0:01:29.2]} 24... Ne4 {[%clk 0:01:24.7]} 25.
Be1 {[%clk 0:01:21.7]} 25... Nc3 {[%clk 0:01:20.7]} 26. Bxc3 {[%clk 0:01:20.8]}
26... Bxc3 {[%clk 0:01:21.6]} 27. g4 {[%clk 0:01:17.1]} 27... Be4 {[%clk
0:01:18.9]} 28. Ng5 {[%clk 0:01:15.3]} 28... Bd4+ {[%clk 0:01:14.2]} 29. Kh2
{[%clk 0:01:15.6]} 29... h6 {[%clk 0:01:06.4]} 30. Nxe4 {[%clk 0:01:11.9]} 30...
Rxe4 {[%clk 0:01:07.3]} 31. Re2 {[%clk 0:01:10.3]} 31... Qe8 {[%clk 0:01:07.3]}
32. Rfe1 {[%clk 0:01:05.5]} 32... Be3 {[%clk 0:01:06.3]} 33. Kg2 {[%clk
0:00:58.6]} 33... f5 {[%clk 0:00:48.9]} 34. Qd3 {[%clk 0:00:54.4]} 34... Bxf4
{[%clk 0:00:39.3]} 35. Rxe4 {[%clk 0:00:53.4]} 35... fxe4 {[%clk 0:00:40.2]} 36.
Qxe4 {[%clk 0:00:46.6]} 36... Be5 {[%clk 0:00:40.1]} 37. Rf1 {[%clk 0:00:42]}
37... Qe7 {[%clk 0:00:38]} 38. Qf3 {[%clk 0:00:33.6]} 38... Nh7 {[%clk
0:00:35.8]} 39. Qe4 {[%clk 0:00:23.2]} 39... Kg7 {[%clk 0:00:35]} 40. Qb1 {[%clk
0:00:14.4]} 40... Qh4 {[%clk 0:00:33]} 41. Qd3 {[%clk 0:00:10.5]} 41... Nf6
{[%clk 0:00:31.2]} 42. Qf3 {[%clk 0:00:05.1]} 42... Qg5 {[%clk 0:00:28.9]} 43.
Nc8 {[%clk 0:00:05.4]} 43... Qd2+ {[%clk 0:00:28]} 44. Rf2 {[%clk 0:00:05.4]}
44... Qd4 {[%clk 0:00:26.5]} 45. Rc2 {[%clk 0:00:02]} 45... h5 {[%clk
0:00:22.9]} 46. Ne7 {[%clk 0:00:02]} 46... hxg4 {[%clk 0:00:21.4]} 47. hxg4
{[%clk 0:00:02.9]} 47... Nxg4 {[%clk 0:00:21.1]} 48. Re2 {[%clk 0:00:03.3]}
48... Nf6 {[%clk 0:00:19.7]} 49. Rf2 {[%clk 0:00:02.2]} 49... Qh4 {[%clk
0:00:19.1]} 50. Qh3 {[%clk 0:00:02.3]} 50... Qg5+ {[%clk 0:00:19.4]} 51. Kf1
{[%clk 0:00:02.1]} 51... Ng4 {[%clk 0:00:19.6]} 0-1

[Event "Early-Titled-Tuesday-Blitz-April-16-2024"]
[Site "Chess.com"]
[Date "2024.04.16"]
[Round "9"]
[White "IsaqueGoncalvesSanto"]
[Black "maracayo"]
[Result "1-0"]
[WhiteElo "1890"]
[BlackElo "2356"]
[TimeControl "180+1"]
[EndTime "9:49:22 PDT"]
[Termination "IsaqueGoncalvesSanto won on time"]

1. d4 {[%clk 0:03:00.9]} 1... d6 {[%clk 0:02:59.8]} 2. c4 {[%clk 0:03:00.5]}
2... Nf6 {[%clk 0:03:00.2]} 3. Nc3 {[%clk 0:03:00.2]} 3... e5 {[%clk 0:03:00]}
4. dxe5 {[%clk 0:02:58.1]} 4... dxe5 {[%clk 0:03:00]} 5. Qxd8+ {[%clk
0:02:57.4]} 5... Kxd8 {[%clk 0:03:00.9]} 6. a3 {[%clk 0:02:56.2]} 6... Be6
{[%clk 0:03:00.6]} 7. e3 {[%clk 0:02:55.2]} 7... Nbd7 {[%clk 0:03:00.4]} 8. b4
{[%clk 0:02:54.3]} 8... c6 {[%clk 0:03:00.2]} 9. Bb2 {[%clk 0:02:53.3]} 9... a5
{[%clk 0:02:52.5]} 10. b5 {[%clk 0:02:40.8]} 10... Kc7 {[%clk 0:02:39.5]} 11.
Nf3 {[%clk 0:02:33.6]} 11... h6 {[%clk 0:02:38.4]} 12. Be2 {[%clk 0:02:29]}
12... Bd6 {[%clk 0:02:25.9]} 13. O-O {[%clk 0:02:26.2]} 13... Rhe8 {[%clk
0:02:25]} 14. Rfd1 {[%clk 0:02:24.9]} 14... Nc5 {[%clk 0:02:06.9]} 15. b6+
{[%clk 0:02:12.6]} 15... Kd7 {[%clk 0:01:59.1]} 16. Nxe5+ {[%clk 0:02:08.2]}
16... Ke7 {[%clk 0:01:56.4]} 17. Nf3 {[%clk 0:01:54]} 17... Ra6 {[%clk 0:01:49]}
18. Rab1 {[%clk 0:01:29.9]} 18... Bf5 {[%clk 0:01:46.4]} 19. e4 {[%clk
0:01:28.4]} 19... Nfxe4 {[%clk 0:01:38]} 20. Nxe4 {[%clk 0:01:27.6]} 20... Bxe4
{[%clk 0:01:37.6]} 21. Rbc1 {[%clk 0:01:10.3]} 21... f6 {[%clk 0:01:24]} 22. a4
{[%clk 0:01:01.8]} 22... Nxa4 {[%clk 0:01:12.8]} 23. Bd4 {[%clk 0:00:57]} 23...
c5 {[%clk 0:01:04.5]} 24. Be3 {[%clk 0:00:53.9]} 24... Rxb6 {[%clk 0:01:01.5]}
25. Ra1 {[%clk 0:00:49.5]} 25... Nc3 {[%clk 0:00:58.7]} 26. Re1 {[%clk
0:00:47.6]} 26... Ra6 {[%clk 0:00:48.6]} 27. Nd2 {[%clk 0:00:45.8]} 27... Nxe2+
{[%clk 0:00:45.2]} 28. Rxe2 {[%clk 0:00:44.1]} 28... Bd3 {[%clk 0:00:44.6]} 29.
Ree1 {[%clk 0:00:42.7]} 29... Kf8 {[%clk 0:00:40.5]} 30. Ra3 {[%clk 0:00:37.9]}
30... Bf5 {[%clk 0:00:31.9]} 31. Rb3 {[%clk 0:00:35.3]} 31... b6 {[%clk
0:00:27.6]} 32. h3 {[%clk 0:00:35.3]} 32... a4 {[%clk 0:00:27]} 33. Ra3 {[%clk
0:00:34.6]} 33... Raa8 {[%clk 0:00:18.7]} 34. Nf3 {[%clk 0:00:33.7]} 34... Bc7
{[%clk 0:00:13.3]} 35. Nh4 {[%clk 0:00:33.3]} 35... Be4 {[%clk 0:00:12.7]} 36.
f3 {[%clk 0:00:32.8]} 36... Bh7 {[%clk 0:00:12.7]} 37. Kf2 {[%clk 0:00:32.7]}
37... Red8 {[%clk 0:00:12.7]} 38. g4 {[%clk 0:00:32.4]} 38... g5 {[%clk
0:00:12.9]} 39. Nf5 {[%clk 0:00:29.4]} 39... Bxf5 {[%clk 0:00:11.5]} 40. gxf5
{[%clk 0:00:29.6]} 40... Be5 {[%clk 0:00:10.5]} 41. Re2 {[%clk 0:00:28.5]} 41...
Rd6 {[%clk 0:00:10.3]} 42. Rea2 {[%clk 0:00:28.3]} 42... Rad8 {[%clk 0:00:08.3]}
43. Rxa4 {[%clk 0:00:27.7]} 43... Rd3 {[%clk 0:00:09]} 44. Ra7 {[%clk
0:00:26.7]} 44... Rc3 {[%clk 0:00:09.1]} 45. Rh7 {[%clk 0:00:25.7]} 45... Kg8
{[%clk 0:00:06.1]} 46. Rxh6 {[%clk 0:00:25.2]} 46... Bd4 {[%clk 0:00:03.8]} 47.
Rg6+ {[%clk 0:00:23.4]} 47... Kf7 {[%clk 0:00:03.1]} 48. Bxd4 {[%clk 0:00:23.4]}
48... cxd4 {[%clk 0:00:02.6]} 49. Ra7+ {[%clk 0:00:23.1]} 49... Kf8 {[%clk
0:00:02.2]} 50. Rxf6+ {[%clk 0:00:23.2]} 50... Kg8 {[%clk 0:00:02.3]} 51. Rg6+
{[%clk 0:00:23.1]} 51... Kf8 {[%clk 0:00:02.4]} 52. Rxg5 {[%clk 0:00:23.1]} 1-0

[Event "Early-Titled-Tuesday-Blitz-April-16-2024"]
[Site "Chess.com"]
[Date "2024.04.16"]
[Round "9"]
[White "esrosenberg"]
[Black "mertfelin"]
[Result "0-1"]
[WhiteElo "2359"]
[BlackElo "2257"]
[TimeControl "180+1"]
[EndTime "9:49:22 PDT"]
[Termination "mertfelin won by resignation"]

1. d4 {[%clk 0:03:00.9]} 1... d5 {[%clk 0:02:53.4]} 2. Nf3 {[%clk 0:03:00.5]}
2... Nf6 {[%clk 0:02:53.8]} 3. g3 {[%clk 0:03:00.3]} 3... e6 {[%clk 0:02:53.9]}
4. Bg2 {[%clk 0:03:00.4]} 4... Be7 {[%clk 0:02:54.7]} 5. O-O {[%clk 0:03:00.4]}
5... O-O {[%clk 0:02:55.5]} 6. c4 {[%clk 0:03:00.3]} 6... dxc4 {[%clk
0:02:56.4]} 7. Na3 {[%clk 0:03:00]} 7... Bxa3 {[%clk 0:02:54.1]} 8. bxa3 {[%clk
0:03:00.9]} 8... Bd7 {[%clk 0:02:53.4]} 9. a4 {[%clk 0:03:00.3]} 9... Bc6 {[%clk
0:02:52]} 10. Ba3 {[%clk 0:02:53.8]} 10... Re8 {[%clk 0:02:51.4]} 11. Rc1 {[%clk
0:02:49.7]} 11... Bd5 {[%clk 0:02:50.2]} 12. Ne5 {[%clk 0:02:43.1]} 12... Bxg2
{[%clk 0:02:20.9]} 13. Kxg2 {[%clk 0:02:44]} 13... Nc6 {[%clk 0:02:21.6]} 14.
Nxc6 {[%clk 0:02:21.4]} 14... Qd5+ {[%clk 0:02:21.9]} 15. f3 {[%clk 0:02:21.1]}
15... Qxc6 {[%clk 0:02:22.6]} 16. e4 {[%clk 0:02:19.2]} 16... a6 {[%clk
0:02:12.8]} 17. Bb2 {[%clk 0:02:11.8]} 17... b5 {[%clk 0:02:10.2]} 18. Qd2
{[%clk 0:01:54.6]} 18... Red8 {[%clk 0:01:51.7]} 19. Rfd1 {[%clk 0:01:54.1]}
19... Qd6 {[%clk 0:01:49.7]} 20. e5 {[%clk 0:01:49.3]} 20... Qe7 {[%clk
0:01:46.8]} 21. exf6 {[%clk 0:01:48.8]} 21... Qxf6 {[%clk 0:01:47.5]} 22. d5
{[%clk 0:01:46.3]} 22... e5 {[%clk 0:01:47.9]} 23. f4 {[%clk 0:01:41.5]} 23...
Qe7 {[%clk 0:01:20.3]} 24. fxe5 {[%clk 0:01:35.6]} 24... Rab8 {[%clk 0:01:18.6]}
25. a5 {[%clk 0:01:27.7]} 25... h6 {[%clk 0:01:13.8]} 26. Qd4 {[%clk 0:01:22.6]}
26... Rd7 {[%clk 0:01:01.6]} 27. Qe4 {[%clk 0:01:01.4]} 27... Re8 {[%clk
0:00:52.3]} 28. Re1 {[%clk 0:00:48.4]} 28... Qb4 {[%clk 0:00:52.6]} 29. Bc3
{[%clk 0:00:46.4]} 29... Qa4 {[%clk 0:00:53.3]} 30. Rc2 {[%clk 0:00:44]} 30...
b4 {[%clk 0:00:53.1]} 31. Bd4 {[%clk 0:00:41.1]} 31... c3 {[%clk 0:00:53.3]} 32.
e6 {[%clk 0:00:39.2]} 32... fxe6 {[%clk 0:00:53.7]} 33. dxe6 {[%clk 0:00:38.8]}
33... Rde7 {[%clk 0:00:53.4]} 34. Rf2 {[%clk 0:00:27.9]} 34... Rxe6 {[%clk
0:00:24.6]} 35. Qxe6+ {[%clk 0:00:26.8]} 35... Rxe6 {[%clk 0:00:25]} 36. Rxe6
{[%clk 0:00:25.7]} 36... c2 {[%clk 0:00:25.5]} 37. Re7 {[%clk 0:00:20.5]} 37...
Qc6+ {[%clk 0:00:24]} 38. Kh3 {[%clk 0:00:16.8]} 38... Qd6 {[%clk 0:00:13.6]}
39. Rxg7+ {[%clk 0:00:15]} 39... Kh8 {[%clk 0:00:14.4]} 40. Bb2 {[%clk
0:00:12.3]} 40... c1=Q {[%clk 0:00:12.4]} 41. Bxc1 {[%clk 0:00:10.7]} 41... Kxg7
{[%clk 0:00:13.1]} 42. Bb2+ {[%clk 0:00:09.8]} 42... Kg6 {[%clk 0:00:11.6]} 43.
Rf4 {[%clk 0:00:08.5]} 43... Qe6+ {[%clk 0:00:11.3]} 44. Kg2 {[%clk 0:00:07.6]}
44... Qxa2 {[%clk 0:00:11.7]} 45. Rf2 {[%clk 0:00:08]} 45... c5 {[%clk
0:00:09.5]} 46. Bh8 {[%clk 0:00:08.9]} 46... Qd5+ {[%clk 0:00:09.2]} 47. Kh3
{[%clk 0:00:08.6]} 47... c4 {[%clk 0:00:09.5]} 48. Rf6+ {[%clk 0:00:08.1]} 48...
Kh7 {[%clk 0:00:08.4]} 49. Rxa6 {[%clk 0:00:09]} 49... Kxh8 {[%clk 0:00:08]} 50.
Ra8+ {[%clk 0:00:09.8]} 50... Qxa8 {[%clk 0:00:07.6]} 0-1